fUSD/lending_fUSD_20241104
["ID","MTS","AMOUNT","RATE_DAILY","PERIOD"]
[341254375,1730727041305,-3198.9846305,0.00043788,2]
[341254376,1730727041315,-1551.17510861,0.00043788,2]
[341254377,1730727041324,-2018.12973309,0.00043788,5]
[341254378,1730727041334,-643.0,0.00043788,2]
[341254379,1730727041345,-955.70510351,0.00043788,2]
[341254380,1730727041356,-28923.29113767,0.00043788,2]
[341254381,1730727041366,-1355.4272706,0.00043788,2]
[341254382,1730727041375,-195743.86747554,0.00043788,2]
[341254383,1730727041393,-7453.50000027,0.00043788,2]
[341254385,1730727043362,-150.0,0.00041158,7]
[341254386,1730727043371,-840.87814477,0.00043788,2]
[341254387,1730727043422,-1241.69999999,0.00043788,2]
[341254388,1730727043433,-3354.83893821,0.00043788,2]
[341254787,1730727133154,150.0,0.00043788,30]
[341254788,1730727133542,191.0,0.00043788,30]
[341254789,1730727163226,201.1,0.00043795,30]
[341254790,1730727172297,1000.0,0.00043795,30]
[341254791,1730727199908,1000.0,0.00043795,30]
[341254792,1730727209699,1000.0,0.00043795,30]
[341254793,1730727211098,1000.0,0.00043795,30]
[341254794,1730727212310,1000.0,0.00043795,30]
[341254795,1730727242270,1000.0,0.00043795,30]
[341254796,1730727252385,3000.0,0.00043795,120]
[341254797,1730727388269,50000.0,0.00043795,30]
[341254798,1730727396221,50000.0,0.00043795,31]
[341254799,1730727400412,50000.0,0.00043795,32]
[341254800,1730727405297,50000.0,0.00043795,33]
[341254801,1730727409208,50000.0,0.00043795,34]
[341254803,1730727442957,1000.0,0.00043795,120]
[341254804,1730727534307,1000.0,0.00043795,30]
[341254805,1730727714535,6159.37,0.00043798,30]
[341254806,1730727734029,150.0,0.00043798,30]
[341254807,1730727734682,191.0,0.00043798,30]
[341254808,1730727762705,201.1,0.00043798,30]
[341254809,1730727767328,1000.0,0.00043798,120]
[341254810,1730727787886,1000.0,0.00043798,30]
[341254811,1730727884241,1000.0,0.00043798,30]
[341254812,1730727889770,1000.0,0.00043802,30]
[341254813,1730727891199,1000.0,0.00043802,30]
[341254814,1730727954394,2000.0,0.00043802,120]
[341254815,1730727977787,1959.0,0.00043802,120]
[341254831,1730728232498,-155.98,0.00015342,2]
[341254832,1730728232509,-156.61,0.00015342,2]
[341254833,1730728232518,-140.06969227,0.00016095,2]
[341254845,1730728240403,-9.93030773,0.00016095,2]
[341254846,1730728240413,-154.75,0.00016712,2]
[341254847,1730728240422,-300.0,0.00019725,2]
[341254848,1730728240431,-250.0,0.00021,2]
[341254849,1730728240441,-420.0,0.00021484,2]
[341254850,1730728240449,-157.51,0.00021918,2]
[341254851,1730728240459,-300.0,0.00023,2]
[341254852,1730728240468,-587.0,0.00023401,2]
[341254853,1730728240477,-350.0,0.00025,2]
[341254854,1730728240486,-239.03689804,0.00025488,2]
[341254900,1730728316051,1002.99,0.00043808,30]
[341254901,1730728356138,50000.0,0.00043808,30]
[341254902,1730728359637,50000.0,0.00043808,31]
[341254903,1730728362826,50000.0,0.00043808,32]
[341254904,1730728364341,150.0,0.00043808,30]
[341254905,1730728366470,50000.0,0.00043808,33]
[341254906,1730728370120,50000.0,0.00043808,34]
[341254908,1730728666000,190.02,0.0004381,30]
[341254909,1730728953185,50000.0,0.00043811,30]
[341254910,1730728957319,50000.0,0.00043811,31]
[341254911,1730728961670,50000.0,0.00043811,32]
[341254912,1730728964903,50000.0,0.00043811,33]
[341254913,1730728968528,50000.0,0.00043811,34]
[341254914,1730729057937,3000.0,0.00043811,120]
[341254936,1730729435885,-157.43,0.00015342,2]
[341254937,1730729435894,-150.0,0.00016095,2]
[341254938,1730729435903,-138.54389129,0.00021,2]
[341254939,1730729435915,-111.45610871,0.00021,2]
[341254940,1730729435924,-157.51,0.00021918,2]
[341254941,1730729435933,-300.0,0.00023,2]
[341254942,1730729435942,-150.46389129,0.00025,2]
[341254943,1730729435976,-199.53610871,0.00025,2]
[341254944,1730729435986,-400.0,0.00027,2]
[341254945,1730729435995,-203.44,0.00027,12]
[341254947,1730729436005,-2371.49,0.000289,2]
[341254949,1730729436014,-450.0,0.00029,2]
[341254951,1730729436023,-181.93,0.00029224,2]
[341254953,1730729436032,-150.0,0.00029315,2]
[341254955,1730729436042,-450.0,0.00029315,2]
[341254957,1730729436051,-746.069,0.00029315,2]
[341254959,1730729436061,-211.83456949,0.00029315,2]
[341254996,1730729437457,-601.16543051,0.00029315,2]
[341254998,1730729437467,-3375.0,0.00029315,2]
[341255000,1730729437476,-150.0,0.00029315,2]
[341255002,1730729437485,-1015.906,0.00029315,2]
[341255003,1730729437494,-150.808,0.00029315,2]
[341255005,1730729437503,-908.73,0.00029326,2]
[341255007,1730729437512,-2371.49,0.00029364,2]
[341255008,1730729437522,-2267.25,0.00029391,2]
[341255010,1730729437531,-240.61,0.00029442,2]
[341255011,1730729437541,-183.15,0.00029619,30]
[341255013,1730729437551,-6012.18,0.00029684,2]
[341255015,1730729437561,-2371.49,0.00029829,2]
[341255016,1730729437570,-151.0,0.0003,120]
[341255017,1730729437579,-182.07,0.00030021,2]
[341255019,1730729437588,-1000.0,0.00030266,2]
[341255020,1730729437598,-250.0,0.00030281,2]
[341255022,1730729437607,-2371.49,0.00030293,2]
[341255024,1730729437617,-334.39,0.00030422,2]
[341255026,1730729437628,-150.0,0.0003049,7]
[341255027,1730729437638,-150.0,0.0003051,2]
[341255029,1730729437648,-155.98,0.00030548,2]
[341255030,1730729437658,-4464.42,0.00030558,2]
[341255032,1730729437667,-455.72,0.00030633,2]
[341255034,1730729437677,-277.27,0.00030668,10]
[341255035,1730729437686,-432.9,0.00030668,10]
[341255036,1730729437695,-500.0,0.00030678,2]
[341255037,1730729437704,-500.0,0.00030678,2]
[341255038,1730729437714,-500.0,0.00030678,2]
[341255039,1730729437724,-500.0,0.00030678,2]
[341255040,1730729437733,-500.0,0.00030678,2]
[341255041,1730729437742,-500.0,0.00030678,2]
[341255042,1730729437751,-500.0,0.00030678,2]
[341255043,1730729437760,-500.0,0.00030678,2]
[341255044,1730729437769,-500.0,0.00030678,2]
[341255045,1730729437779,-500.0,0.00030678,2]
[341255046,1730729437790,-500.0,0.00030678,2]
[341255047,1730729437799,-500.0,0.00030678,2]
[341255048,1730729437808,-500.0,0.00030678,2]
[341255049,1730729437818,-500.0,0.00030678,2]
[341255050,1730729437827,-500.0,0.00030678,2]
[341255051,1730729437837,-500.0,0.00030678,2]
[341255052,1730729437847,-500.0,0.00030678,2]
[341255053,1730729437856,-500.0,0.00030678,2]
[341255054,1730729437866,-500.0,0.00030678,2]
[341255055,1730729437875,-287.52014146,0.00030678,2]
[341255056,1730729437894,-212.47985854,0.00030678,2]
[341255057,1730729437904,-500.0,0.00030678,2]
[341255058,1730729437914,-500.0,0.00030678,2]
[341255059,1730729437923,-500.0,0.00030678,2]
[341255060,1730729437932,-500.0,0.00030678,2]
[341255061,1730729437942,-500.0,0.00030678,2]
[341255062,1730729437951,-349.45182147,0.00030678,2]
[341255063,1730729437962,-150.54817853,0.00030678,2]
[341255065,1730729437971,-500.0,0.00030678,2]
[341255087,1730729437981,-500.0,0.00030678,2]
[341255090,1730729438189,-38.42447175,0.00030678,2]
[341255094,1730729438220,-461.57552825,0.00030678,2]
[341255096,1730729438230,-500.0,0.00030678,2]
[341255098,1730729438241,-500.0,0.00030678,2]
[341255100,1730729438250,-500.0,0.00030678,2]
[341255102,1730729438260,-500.0,0.00030678,2]
[341255104,1730729438269,-500.0,0.00030678,2]
[341255106,1730729438279,-500.0,0.00030678,2]
[341255108,1730729438287,-500.0,0.00030678,2]
[341255109,1730729438296,-500.0,0.00030678,2]
[341255111,1730729438306,-500.0,0.00030678,2]
[341255112,1730729438315,-500.0,0.00030678,2]
[341255114,1730729438324,-500.0,0.00030678,2]
[341255116,1730729438333,-500.0,0.00030678,2]
[341255118,1730729438344,-500.0,0.00030678,2]
[341255119,1730729438362,-500.0,0.00030678,2]
[341255121,1730729438371,-500.0,0.00030678,2]
[341255123,1730729438380,-500.0,0.00030678,2]
[341255125,1730729438390,-500.0,0.00030678,2]
[341255127,1730729438399,-500.0,0.00030678,2]
[341255129,1730729438409,-500.0,0.00030678,2]
[341255131,1730729438419,-500.0,0.00030678,2]
[341255133,1730729438428,-500.0,0.00030678,2]
[341255135,1730729438437,-500.0,0.00030678,2]
[341255137,1730729438447,-500.0,0.00030678,2]
[341255139,1730729438456,-500.0,0.00030678,2]
[341255141,1730729438465,-500.0,0.00030678,2]
[341255143,1730729438474,-500.0,0.00030678,2]
[341255145,1730729438483,-500.0,0.00030678,2]
[341255147,1730729438493,-500.0,0.00030678,2]
[341255149,1730729438502,-500.0,0.00030678,2]
[341255151,1730729438511,-500.0,0.00030678,2]
[341255153,1730729438520,-500.0,0.00030678,2]
[341255155,1730729438530,-500.0,0.00030678,2]
[341255157,1730729438539,-500.0,0.00030678,2]
[341255159,1730729438548,-500.0,0.00030678,2]
[341255161,1730729438558,-500.0,0.00030678,2]
[341255163,1730729438568,-500.0,0.00030678,2]
[341255164,1730729438577,-500.0,0.00030678,2]
[341255165,1730729438586,-500.0,0.00030678,2]
[341255166,1730729438595,-500.0,0.00030678,2]
[341255167,1730729438604,-500.0,0.00030678,2]
[341255168,1730729438614,-500.0,0.00030678,2]
[341255169,1730729438623,-500.0,0.00030678,2]
[341255170,1730729438632,-500.0,0.00030757,2]
[341255171,1730729438641,-503.52627928,0.00030757,2]
[341255172,1730729438650,-2371.49,0.00030758,2]
[341255173,1730729438659,-23870.0,0.00030967,2]
[341255174,1730729438668,-500.0,0.00031,2]
[341255175,1730729438677,-156.14,0.00031046,2]
[341255176,1730729438687,-1169.84,0.00031216,2]
[341255177,1730729438696,-2371.49,0.00031222,2]
[341255178,1730729438705,-612.87712824,0.00031586,15]
[341255179,1730729438715,-908.73,0.0003159,2]
[341255180,1730729438724,-450.66,0.00031675,3]
[341255181,1730729438733,-194.10086212,0.00031684,2]
[341255182,1730729438743,-218.0,0.00031685,2]
[341255183,1730729438752,-254764.7942,0.00031685,2]
[341255184,1730729438761,-2371.49,0.00031686,2]
[341255185,1730729438771,-2371.49,0.00032151,2]
[341255186,1730729438780,-150.0,0.00032315,2]
[341255187,1730729438789,-813.0,0.00032315,2]
[341255188,1730729438798,-3375.0,0.00032315,2]
[341255189,1730729438807,-150.0,0.00032315,2]
[341255190,1730729438816,-163.20702091,0.00032877,2]
[341255191,1730729438825,-550.0,0.00033,2]
[341255192,1730729438834,-182.07,0.00033023,2]
[341255193,1730729438843,-612.87712824,0.00033599,15]
[341255194,1730729438853,-908.73,0.00033854,2]
[341255195,1730729438863,-1000.0,0.00034049,2]
[341255196,1730729438872,-156.14,0.00034151,2]
[341255197,1730729438881,-218.0,0.00034685,2]
[341255198,1730729438890,-600.0,0.00035,2]
[341255199,1730729438899,-406.453,0.00035315,2]
[341255200,1730729438908,-3375.0,0.00035315,2]
[341255201,1730729438917,-150.0,0.00035315,2]
[341255202,1730729438926,-300.43,0.00035506,3]
[341255203,1730729438935,-150.22,0.00035506,3]
[341255204,1730729438944,-13904.6942,0.00035516,2]
[341255205,1730729438953,-1468.5218,0.00035516,2]
[341255206,1730729438963,-15674.6831,0.00035516,2]
[341255207,1730729438972,-351.76529308,0.00035516,2]
[341255208,1730729438981,-612.87712824,0.00035611,15]
[341255209,1730729438990,-500.0,0.00035616,2]
[341255210,1730729438999,-339.02921139,0.00035616,2]
[341255211,1730729439009,-454.49725481,0.00035616,2]
[341255212,1730729439018,-500.0,0.00035616,2]
[341255213,1730729439026,-500.0,0.00035616,2]
[341255214,1730729439036,-500.0,0.00035616,2]
[341255215,1730729439045,-565.14164004,0.00035616,2]
[341255216,1730729439054,-500.0,0.00035616,2]
[341255217,1730729439063,-505.11800247,0.00035616,2]
[341255218,1730729439073,-196.3765549,0.00035616,2]
[341255219,1730729439082,-500.0,0.00035616,2]
[341255220,1730729439091,-510.81922885,0.00035616,2]
[341255221,1730729439100,-513.33285768,0.00035616,2]
[341255222,1730729439110,-500.0,0.00035616,2]
[341255223,1730729439119,-250.0,0.00035616,2]
[341255224,1730729439128,-500.0,0.00035616,2]
[341255225,1730729439138,-500.0,0.00035616,2]
[341255226,1730729439147,-500.0,0.00035616,2]
[341255227,1730729439156,-500.0,0.00035616,2]
[341255228,1730729439165,-500.0,0.00035616,2]
[341255229,1730729439175,-500.0,0.00035616,2]
[341255230,1730729439184,-500.0,0.00035616,2]
[341255231,1730729439193,-500.0,0.00035616,2]
[341255232,1730729439202,-521.80392605,0.00035616,2]
[341255233,1730729439212,-171.375597,0.00035616,2]
[341255234,1730729439221,-500.0,0.00035616,2]
[341255235,1730729439230,-156.116056,0.00035616,2]
[341255236,1730729439239,-500.0,0.00035616,2]
[341255237,1730729439248,-500.0,0.00035616,2]
[341255238,1730729439257,-500.0,0.00035616,2]
[341255239,1730729439266,-500.0,0.00035616,2]
[341255240,1730729439275,-500.0,0.00035616,2]
[341255241,1730729439284,-516.62055423,0.00035616,2]
[341255242,1730729439294,-500.0,0.00035616,2]
[341255243,1730729439303,-502.91597112,0.00035616,2]
[341255244,1730729439312,-504.53225389,0.00035616,2]
[341255246,1730729439321,-500.0,0.00035616,2]
[341255248,1730729439331,-542.57823372,0.00035616,2]
[341255250,1730729439340,-515.13147661,0.00035616,2]
[341255251,1730729439354,-500.0,0.00035616,2]
[341255252,1730729439363,-500.0,0.00035616,2]
[341255253,1730729439372,-500.0,0.00035616,2]
[341255254,1730729439382,-500.0,0.00035616,2]
[341255255,1730729439391,-500.0,0.00035616,2]
[341255256,1730729439400,-500.0,0.00035616,2]
[341255257,1730729439410,-515.88900444,0.00035616,2]
[341255259,1730729439419,-500.0,0.00035616,2]
[341255260,1730729439429,-500.0,0.00035616,2]
[341255261,1730729439440,-500.0,0.00035616,2]
[341255262,1730729439449,-517.90080069,0.00035616,2]
[341255263,1730729439459,-500.0,0.00035616,2]
[341255264,1730729439468,-500.0,0.00035616,2]
[341255265,1730729439477,-500.0,0.00035616,2]
[341255266,1730729439487,-500.0,0.00035616,2]
[341255267,1730729439496,-508.0568724,0.00035616,2]
[341255268,1730729439505,-500.0,0.00035616,2]
[341255269,1730729439516,-503.19553962,0.00035616,2]
[341255270,1730729439526,-500.0,0.00035616,2]
[341255271,1730729439535,-500.0,0.00035616,2]
[341255272,1730729439546,-520.92643757,0.00035616,2]
[341255273,1730729439555,-500.0,0.00035616,2]
[341255274,1730729439565,-500.0,0.00035616,2]
[341255275,1730729439574,-707.91,0.00035616,2]
[341255276,1730729439584,-500.0,0.00035616,2]
[341255277,1730729439593,-500.0,0.00035616,2]
[341255278,1730729439603,-500.0,0.00035616,2]
[341255279,1730729439612,-500.0,0.00035616,2]
[341255280,1730729439622,-828.51,0.00035616,2]
[341255281,1730729439631,-702.07,0.00035616,2]
[341255282,1730729439641,-500.0,0.00035616,2]
[341255283,1730729439650,-500.0,0.00035616,2]
[341255284,1730729439659,-522.43564164,0.00035616,2]
[341255285,1730729439668,-1016.59,0.00035616,2]
[341255286,1730729439677,-500.0,0.00035616,2]
[341255287,1730729439686,-500.0,0.00035616,2]
[341255288,1730729439695,-987.48,0.00035616,2]
[341255289,1730729439704,-1000.0,0.00035616,2]
[341255290,1730729439714,-500.0,0.00035616,2]
[341255291,1730729439723,-539.37160018,0.00035616,2]
[341255292,1730729439732,-500.0,0.00035616,2]
[341255293,1730729439741,-832.81,0.00035616,2]
[341255294,1730729439750,-500.0,0.00035616,2]
[341255295,1730729439760,-500.0,0.00035616,2]
[341255296,1730729439769,-500.0,0.00035616,2]
[341255297,1730729439779,-500.0,0.00035616,2]
[341255298,1730729439788,-1165.88,0.00035616,2]
[341255299,1730729439797,-500.0,0.00035616,2]
[341255300,1730729439809,-500.0,0.00035616,2]
[341255301,1730729439819,-500.0,0.00035616,2]
[341255302,1730729439828,-500.0,0.00035616,2]
[341255303,1730729439838,-509.8,0.00035616,2]
[341255304,1730729439848,-500.0,0.00035616,2]
[341255305,1730729439857,-500.0,0.00035616,2]
[341255306,1730729439867,-500.0,0.00035616,2]
[341255307,1730729439876,-938.96,0.00035616,2]
[341255308,1730729439886,-500.0,0.00035616,2]
[341255310,1730729439895,-171.11644346,0.00035616,2]
[341255311,1730729439905,-500.0,0.00035616,2]
[341255313,1730729439915,-520.33997579,0.00035616,2]
[341255315,1730729439924,-500.0,0.00035616,2]
[341255317,1730729439933,-500.0,0.00035616,2]
[341255319,1730729439942,-500.0,0.00035616,2]
[341255321,1730729439952,-500.0,0.00035616,2]
[341255323,1730729439961,-500.0,0.00035616,2]
[341255325,1730729439971,-512.10528008,0.00035616,2]
[341255327,1730729439980,-330.78826893,0.00035616,2]
[341255329,1730729439989,-500.0,0.00035616,2]
[341255331,1730729439999,-500.0,0.00035616,2]
[341255333,1730729440008,-502.93508176,0.00035616,2]
[341255335,1730729440018,-864.12,0.00035616,2]
[341255337,1730729440027,-500.0,0.00035616,2]
[341255338,1730729440036,-500.0,0.00035616,2]
[341255339,1730729440045,-500.0,0.00035616,2]
[341255340,1730729440054,-500.0,0.00035616,2]
[341255341,1730729440063,-500.0,0.00035616,2]
[341255342,1730729440073,-500.0,0.00035616,2]
[341255343,1730729440083,-500.0,0.00035616,2]
[341255344,1730729440092,-535.35,0.00035616,2]
[341255345,1730729440102,-751.67,0.00035616,2]
[341255347,1730729440111,-500.0,0.00035616,2]
[341255349,1730729440122,-500.0,0.00035616,2]
[341255351,1730729440131,-500.0,0.00035616,2]
[341255353,1730729440140,-755.3,0.00035616,2]
[341255355,1730729440150,-500.0,0.00035616,2]
[341255357,1730729440159,-500.0,0.00035616,2]
[341255359,1730729440168,-973.97,0.00035616,2]
[341255360,1730729440177,-500.0,0.00035616,2]
[341255362,1730729440186,-500.0,0.00035616,2]
[341255364,1730729440195,-1216.53,0.00035616,2]
[341255366,1730729440204,-500.0,0.00035616,2]
[341255368,1730729440213,-500.0,0.00035616,2]
[341255370,1730729440222,-500.0,0.00035616,2]
[341255372,1730729440231,-281.82656379,0.00035616,2]
[341255374,1730729440241,-500.0,0.00035616,2]
[341255376,1730729440250,-500.0,0.00035616,2]
[341255378,1730729440259,-1126.31,0.00035616,2]
[341255380,1730729440268,-515.72766484,0.00035616,2]
[341255382,1730729440277,-500.0,0.00035616,2]
[341255384,1730729440286,-500.0,0.00035616,2]
[341255386,1730729440296,-242.31430159,0.00035616,2]
[341255388,1730729440305,-500.0,0.00035616,2]
[341255390,1730729440314,-500.0,0.00035616,2]
[341255392,1730729440323,-500.0,0.00035616,2]
[341255394,1730729440333,-9980.84,0.00035616,2]
[341255396,1730729440342,-500.0,0.00035616,2]
[341255398,1730729440355,-300.0,0.00035616,2]
[341255400,1730729440367,-518.91797529,0.00035725,5]
[341255402,1730729440376,-151.0,0.0003575,2]
[341255404,1730729440385,-243.48775542,0.00035787,2]
[341255406,1730729440395,-179.76133896,0.00035789,2]
[341255408,1730729440404,-807.83263994,0.00035789,2]
[341255410,1730729440414,-11991.42785728,0.00035789,2]
[341255412,1730729440425,-217.29163824,0.00035789,2]
[341255414,1730729440434,-500.0,0.00035873,5]
[341255416,1730729440444,-218.43027305,0.00035877,2]
[341255418,1730729440453,-574.32055457,0.00035885,2]
[341255420,1730729440463,-500.0,0.00035886,2]
[341255422,1730729440472,-500.0,0.00035886,2]
[341255424,1730729440481,-500.0,0.00035886,2]
[341255426,1730729440490,-500.0,0.00035886,2]
[341255428,1730729440500,-500.0,0.00035886,2]
[341255430,1730729440509,-500.0,0.00035886,2]
[341255432,1730729440519,-568.68,0.00035886,2]
[341255434,1730729440529,-622.82,0.00035886,2]
[341255436,1730729440539,-500.0,0.00035886,2]
[341255438,1730729440548,-500.0,0.00035886,2]
[341255440,1730729440557,-500.0,0.00035886,2]
[341255442,1730729440567,-500.0,0.00035886,2]
[341255444,1730729440576,-500.0,0.00035886,2]
[341255446,1730729440586,-500.0,0.00035886,2]
[341255448,1730729440596,-500.0,0.00035886,2]
[341255450,1730729440605,-1922.98,0.00035886,2]
[341255452,1730729440616,-500.0,0.00035886,2]
[341255454,1730729440625,-500.0,0.00035886,2]
[341255455,1730729440634,-51072.43663207,0.00035886,2]
[341255475,1730729440809,-1210.029,0.00031585,2]
[341255477,1730729440818,-155449.971,0.00035886,2]
[341255479,1730729440829,-516.29680442,0.00035886,2]
[341255482,1730729440844,-281.3614,0.00035886,2]
[341255687,1730729442555,-687.07,0.00035886,2]
[341255714,1730729442803,-435.32343305,0.00035616,2]
[341255725,1730729442892,-411.52,0.00031675,10]
[341255727,1730729442902,-64.67656695,0.00035616,2]
[341255729,1730729442911,-88.36718105,0.00035886,2]
[341255731,1730729442922,-381.52586193,0.00035886,2]
[341255733,1730729442933,-526.6052595,0.00035886,2]
[341255983,1730729445510,-477.72577819,0.00035285,2]
[341255985,1730729445523,-1722.72537675,0.00035285,2]
[341256348,1730729559713,879.52590194,0.00043811,120]
[341256349,1730729745043,250.7,0.00043812,30]
[341256350,1730729745383,748.5,0.00043812,30]
[341256351,1730729810820,599.13,0.00043812,30]
[341256352,1730729818700,500.77,0.00043812,30]
[341256353,1730729819070,375.928526,0.00043812,30]
[341256354,1730729819372,281.1406,0.00043812,30]
[341256355,1730729819699,841.5,0.00043812,30]
[341256357,1730729839627,168.42,0.00015342,2]
[341256359,1730729913350,5043.0,0.00043812,30]
[341256360,1730730020819,1643.65858672,0.00043819,30]
[341256361,1730730041447,150.0,0.000156,2]
[341256363,1730730245783,5000.0,0.00043819,120]
[341256364,1730730259663,500.0,0.00043819,30]
[341256366,1730730268490,1000.0,0.00043819,30]
[341256367,1730730274790,1000.0,0.00043819,30]
[341256368,1730730288402,500.0,0.00043819,30]
[341256369,1730730303657,284.60412215,0.000251,60]
[341256370,1730730343746,124053.44363282,0.00043819,30]
[341256372,1730730387465,157.72,0.00015342,2]
[341256373,1730730393488,510.47048576,0.00015,2]
[341256374,1730730429730,50318.90208671,0.00043819,30]
[341256382,1730730485403,113013.38951424,0.00015,2]
[341256383,1730730485432,102833.75461972,0.00015,2]
[341256384,1730730515881,26239.41963441,0.00043819,30]
[341256387,1730730528512,150.44627616,0.00013,2]
[341256388,1730730529546,254.94181388,0.000107,2]
[341256395,1730730603367,150.0,0.000107,2]
[341256396,1730730631564,-150.21,0.0001599,3]
[341256397,1730730631573,-450.67,0.0001599,3]
[341256398,1730730631581,-300.0,0.00015999,2]
[341256399,1730730631591,-2919.1,0.00016,2]
[341256403,1730730631919,-2282.28975703,0.00016,2]
[341256404,1730730631931,-458.98179632,0.00016,2]
[341256658,1730730637702,-402.24,0.0001591,2]
[341256659,1730730637712,-4260.60750685,0.00016,2]
[341256660,1730730637726,-1345.81088568,0.00016,2]
[341256661,1730730637737,-59759.41882225,0.00016,2]
[341256662,1730730637756,-428.640303,0.00016,2]
[341256663,1730730637848,-1234.63522344,0.00016,2]
[341256664,1730730637861,-15545.0,0.00016,2]
[341256665,1730730637928,-544.78627137,0.00016,2]
[341256684,1730730639970,-1152.479994,0.00016,2]
[341256685,1730730639983,-572.48527962,0.00016,2]
[341256686,1730730639994,-5151.94384007,0.00016,2]
[341256706,1730730643629,-6519.18111652,0.00016,2]
[341256819,1730730645843,-2864.32182074,0.00016,2]
[341256820,1730730645880,-300.0,0.00016,2]
[341256827,1730730751183,50000.0,0.00043819,30]
[341256828,1730730755388,50000.0,0.00043819,31]
[341256829,1730730758709,50000.0,0.00043819,32]
[341256830,1730730763971,50000.0,0.00043819,33]
[341256831,1730730765777,50000.0,0.00043819,34]
[341256832,1730730851543,3000.0,0.00043819,120]
[341256835,1730730989452,745487.8010314,0.00043815,30]
[341256836,1730731054491,1141.0,0.00015064,2]
[341256839,1730731563904,2777.24181,0.00015,5]
[341256841,1730731607259,-157.06,0.00015342,2]
[341256842,1730731607286,-157.43,0.00015342,2]
[341256843,1730731607308,-300.42,0.0001599,3]
[341256844,1730731607330,-15635.09,0.00016,2]
[341256883,1730731832210,-320.26336196,0.000159,2]
[341256884,1730731832219,-230.6,0.0001599,2]
[341256885,1730731832228,-300.0,0.00015999,2]
[341256886,1730731832237,-6221.10663804,0.00016,2]
[341256887,1730731832435,-143.71463937,0.00016,2]
[341256888,1730731836109,-87195.52775701,0.00016,2]
[341256889,1730731836216,-6226.39491147,0.00016,2]
[341257030,1730731837892,-316.17,0.00016,2]
[341257031,1730731837905,-408.7556411,0.00016,2]
[341257032,1730731837980,-2005.33158,0.00016,2]
[341257033,1730731838173,-220247.18933617,0.00016,2]
[341257034,1730731838183,-150.0,0.00016785,2]
[341257035,1730731838193,-1384.04515875,0.00017392,2]
[341257036,1730731838203,-420.0,0.00017492,2]
[341257037,1730731838212,-743.41744628,0.00018,2]
[341257038,1730731838222,-930.13,0.00018,2]
[341257039,1730731838232,-999.99,0.00018,2]
[341257040,1730731838242,-2175.65082561,0.00018683,2]
[341257041,1730731838254,-6897.21,0.00018683,2]
[341257042,1730731838265,-861.84,0.00018683,2]
[341257043,1730731838274,-921.82960735,0.0001892,2]
[341257044,1730731838284,-8772.32,0.0001892,2]
[341257045,1730731838294,-3997.07,0.0001892,2]
[341257046,1730731838304,-11391.8678124,0.00019071,2]
[341257047,1730731838317,-325.14,0.00019125,2]
[341257048,1730731838328,-29205.14,0.00019125,2]
[341257049,1730731838338,-607.07,0.00019125,2]
[341257050,1730731838348,-587.0,0.00019125,2]